{"text_format":"1","workbook":"xlsx","n_sheets":4,"sheets":["reporte","lista","nombres definidos","pass"],"not_rendered":{"charts":0,"images":0,"macros":1,"external_links":0,"defined_names":11,"comments":0,"pivot_tables":0},"unopened":[],"bounds":{"document_bytes":16777216,"sheet_cells":100000,"rows_first":2000,"rows_last":500,"rows_between":2000,"halvings":0,"cell_chars":16384,"cell_head_chars":4096},"cells_cut":0,"cells_raw":0,"read":"whole","date_system":"1900"}

{"sheet":"reporte","index":0,"n_rows":110,"n_cols":8,"rows_kept":110,"cut":false,"hidden":false,"merged":[]}
[]
[null,"Región","REGION DEL PACIFICO"]
[]
[null,"Departamento","MANAGUA",null,null,"REGIÓN","DEPARTAMENTOS","MUNICIPIOS"]
[null,null,null,null,null,{"$f":"Continente_Elegido","v":"REGION DEL PACIFICO"},{"$f":"IF(lista!H2=0,\"\",lista!H2)","v":"LEON"},{"$f":"IF(lista!J2=0,\"\",lista!J2)","v":"CIUDAD SANDINO"}]
[null,"Municipios",null,null,null,null,{"$f":"IF(lista!H3=0,\"\",lista!H3)","v":"RIVAS"},{"$f":"IF(lista!J3=0,\"\",lista!J3)","v":"EL CRUCERO"}]
[null,null,null,null,null,null,{"$f":"IF(lista!H4=0,\"\",lista!H4)","v":"CARAZO"},{"$f":"IF(lista!J4=0,\"\",lista!J4)","v":"MANAGUA"}]
[null,"Población",{"$f":"IFERROR(VLOOKUP(C6,tblCiudadPoblacion,2,0),\"\")","v":""},null,null,null,{"$f":"IF(lista!H5=0,\"\",lista!H5)","v":"MASAYA"},{"$f":"IF(lista!J5=0,\"\",lista!J5)","v":"MASACHAPA"}]
[null,null,null,null,null,null,{"$f":"IF(lista!H6=0,\"\",lista!H6)","v":"CHINANDEGA"},{"$f":"IF(lista!J6=0,\"\",lista!J6)","v":"MATEARE"}]
[null,null,null,null,null,null,{"$f":"IF(lista!H7=0,\"\",lista!H7)","v":"MANAGUA"},{"$f":"IF(lista!J7=0,\"\",lista!J7)","v":"SAN FRANCISCO LIBRE"}]
[null,null,null,null,null,null,{"$f":"IF(lista!H8=0,\"\",lista!H8)","v":"GRANADA"},{"$f":"IF(lista!J8=0,\"\",lista!J8)","v":"SAN RAFAEL DEL SUR"}]
[null,null,null,null,null,null,{"$f":"IF(lista!H9=0,\"\",lista!H9)","v":""},{"$f":"IF(lista!J9=0,\"\",lista!J9)","v":"TICUANTEPE"}]
[null,null,null,null,null,null,{"$f":"IF(lista!H10=0,\"\",lista!H10)","v":""},{"$f":"IF(lista!J10=0,\"\",lista!J10)","v":"TIPITAPA"}]
[null,null,null,null,null,null,{"$f":"IF(lista!H11=0,\"\",lista!H11)","v":""},{"$f":"IF(lista!J11=0,\"\",lista!J11)","v":"VILLA CARLOS FONSECA"}]
[null,null,null,null,null,null,{"$f":"IF(lista!H12=0,\"\",lista!H12)","v":""},{"$f":"IF(lista!J12=0,\"\",lista!J12)","v":""}]
[null,null,null,null,null,null,{"$f":"IF(lista!H13=0,\"\",lista!H13)","v":""},{"$f":"IF(lista!J13=0,\"\",lista!J13)","v":""}]
[null,null,null,null,null,null,{"$f":"IF(lista!H14=0,\"\",lista!H14)","v":""},{"$f":"IF(lista!J14=0,\"\",lista!J14)","v":""}]
[null,null,null,null,null,null,{"$f":"IF(lista!H15=0,\"\",lista!H15)","v":""},{"$f":"IF(lista!J15=0,\"\",lista!J15)","v":""}]
[null,null,null,null,null,null,{"$f":"IF(lista!H16=0,\"\",lista!H16)","v":""},{"$f":"IF(lista!J16=0,\"\",lista!J16)","v":""}]
[null,null,null,null,null,null,{"$f":"IF(lista!H17=0,\"\",lista!H17)","v":""},{"$f":"IF(lista!J17=0,\"\",lista!J17)","v":""}]
[null,null,null,null,null,null,{"$f":"IF(lista!H18=0,\"\",lista!H18)","v":""},{"$f":"IF(lista!J18=0,\"\",lista!J18)","v":""}]
[null,null,null,null,null,null,{"$f":"IF(lista!H19=0,\"\",lista!H19)","v":""},{"$f":"IF(lista!J19=0,\"\",lista!J19)","v":""}]
[null,null,null,null,null,null,{"$f":"IF(lista!H20=0,\"\",lista!H20)","v":""},{"$f":"IF(lista!J20=0,\"\",lista!J20)","v":""}]
[null,null,null,null,null,null,{"$f":"IF(lista!H21=0,\"\",lista!H21)","v":""},{"$f":"IF(lista!J21=0,\"\",lista!J21)","v":""}]
[null,null,null,null,null,null,{"$f":"IF(lista!H22=0,\"\",lista!H22)","v":""},{"$f":"IF(lista!J22=0,\"\",lista!J22)","v":""}]
[null,null,null,null,null,null,{"$f":"IF(lista!H23=0,\"\",lista!H23)","v":""},{"$f":"IF(lista!J23=0,\"\",lista!J23)","v":""}]
[null,null,null,null,null,null,{"$f":"IF(lista!H24=0,\"\",lista!H24)","v":""},{"$f":"IF(lista!J24=0,\"\",lista!J24)","v":""}]
[null,null,null,null,null,null,{"$f":"IF(lista!H25=0,\"\",lista!H25)","v":""},{"$f":"IF(lista!J25=0,\"\",lista!J25)","v":""}]
[null,null,null,null,null,null,{"$f":"IF(lista!H26=0,\"\",lista!H26)","v":""},{"$f":"IF(lista!J26=0,\"\",lista!J26)","v":""}]
[null,null,null,null,null,null,{"$f":"IF(lista!H27=0,\"\",lista!H27)","v":""},{"$f":"IF(lista!J27=0,\"\",lista!J27)","v":""}]
[null,null,null,null,null,null,{"$f":"IF(lista!H28=0,\"\",lista!H28)","v":""},{"$f":"IF(lista!J28=0,\"\",lista!J28)","v":""}]
[null,null,null,null,null,null,{"$f":"IF(lista!H29=0,\"\",lista!H29)","v":""},{"$f":"IF(lista!J29=0,\"\",lista!J29)","v":""}]
[null,null,null,null,null,null,{"$f":"IF(lista!H30=0,\"\",lista!H30)","v":""},{"$f":"IF(lista!J30=0,\"\",lista!J30)","v":""}]
[null,null,null,null,null,null,{"$f":"IF(lista!H31=0,\"\",lista!H31)","v":""},{"$f":"IF(lista!J31=0,\"\",lista!J31)","v":""}]
[null,null,null,null,null,null,{"$f":"IF(lista!H32=0,\"\",lista!H32)","v":""},{"$f":"IF(lista!J32=0,\"\",lista!J32)","v":""}]
[null,null,null,null,null,null,{"$f":"IF(lista!H33=0,\"\",lista!H33)","v":""},{"$f":"IF(lista!J33=0,\"\",lista!J33)","v":""}]
[null,null,null,null,null,null,{"$f":"IF(lista!H34=0,\"\",lista!H34)","v":""},{"$f":"IF(lista!J34=0,\"\",lista!J34)","v":""}]
[null,null,null,null,null,null,{"$f":"IF(lista!H35=0,\"\",lista!H35)","v":""},{"$f":"IF(lista!J35=0,\"\",lista!J35)","v":""}]
[null,null,null,null,null,null,{"$f":"IF(lista!H36=0,\"\",lista!H36)","v":""},{"$f":"IF(lista!J36=0,\"\",lista!J36)","v":""}]
[null,null,null,null,null,null,{"$f":"IF(lista!H37=0,\"\",lista!H37)","v":""},{"$f":"IF(lista!J37=0,\"\",lista!J37)","v":""}]
[null,null,null,null,null,null,{"$f":"IF(lista!H38=0,\"\",lista!H38)","v":""},{"$f":"IF(lista!J38=0,\"\",lista!J38)","v":""}]
[null,null,null,null,null,null,{"$f":"IF(lista!H39=0,\"\",lista!H39)","v":""},{"$f":"IF(lista!J39=0,\"\",lista!J39)","v":""}]
[null,null,null,null,null,null,{"$f":"IF(lista!H40=0,\"\",lista!H40)","v":""},{"$f":"IF(lista!J40=0,\"\",lista!J40)","v":""}]
[null,null,null,null,null,null,{"$f":"IF(lista!H41=0,\"\",lista!H41)","v":""},{"$f":"IF(lista!J41=0,\"\",lista!J41)","v":""}]
[null,null,null,null,null,null,{"$f":"IF(lista!H42=0,\"\",lista!H42)","v":""},{"$f":"IF(lista!J42=0,\"\",lista!J42)","v":""}]
[null,null,null,null,null,null,{"$f":"IF(lista!H43=0,\"\",lista!H43)","v":""},{"$f":"IF(lista!J43=0,\"\",lista!J43)","v":""}]
[null,null,null,null,null,null,{"$f":"IF(lista!H44=0,\"\",lista!H44)","v":""},{"$f":"IF(lista!J44=0,\"\",lista!J44)","v":""}]
[null,null,null,null,null,null,{"$f":"IF(lista!H45=0,\"\",lista!H45)","v":""},{"$f":"IF(lista!J45=0,\"\",lista!J45)","v":""}]
[null,null,null,null,null,null,{"$f":"IF(lista!H46=0,\"\",lista!H46)","v":""},{"$f":"IF(lista!J46=0,\"\",lista!J46)","v":""}]
[null,null,null,null,null,null,{"$f":"IF(lista!H47=0,\"\",lista!H47)","v":""},{"$f":"IF(lista!J47=0,\"\",lista!J47)","v":""}]
[null,null,null,null,null,null,{"$f":"IF(lista!H48=0,\"\",lista!H48)","v":""},{"$f":"IF(lista!J48=0,\"\",lista!J48)","v":""}]
[null,null,null,null,null,null,{"$f":"IF(lista!H49=0,\"\",lista!H49)","v":""},{"$f":"IF(lista!J49=0,\"\",lista!J49)","v":""}]
[null,null,null,null,null,null,{"$f":"IF(lista!H50=0,\"\",lista!H50)","v":""},{"$f":"IF(lista!J50=0,\"\",lista!J50)","v":""}]
[null,null,null,null,null,null,{"$f":"IF(lista!H51=0,\"\",lista!H51)","v":""},{"$f":"IF(lista!J51=0,\"\",lista!J51)","v":""}]
[null,null,null,null,null,null,{"$f":"IF(lista!H52=0,\"\",lista!H52)","v":""},{"$f":"IF(lista!J52=0,\"\",lista!J52)","v":""}]
[null,null,null,null,null,null,{"$f":"IF(lista!H53=0,\"\",lista!H53)","v":""},{"$f":"IF(lista!J53=0,\"\",lista!J53)","v":""}]
[null,null,null,null,null,null,{"$f":"IF(lista!H54=0,\"\",lista!H54)","v":""},{"$f":"IF(lista!J54=0,\"\",lista!J54)","v":""}]
[null,null,null,null,null,null,{"$f":"IF(lista!H55=0,\"\",lista!H55)","v":""},{"$f":"IF(lista!J55=0,\"\",lista!J55)","v":""}]
[null,null,null,null,null,null,{"$f":"IF(lista!H56=0,\"\",lista!H56)","v":""},{"$f":"IF(lista!J56=0,\"\",lista!J56)","v":""}]
[null,null,null,null,null,null,{"$f":"IF(lista!H57=0,\"\",lista!H57)","v":""},{"$f":"IF(lista!J57=0,\"\",lista!J57)","v":""}]
[null,null,null,null,null,null,{"$f":"IF(lista!H58=0,\"\",lista!H58)","v":""},{"$f":"IF(lista!J58=0,\"\",lista!J58)","v":""}]
[null,null,null,null,null,null,{"$f":"IF(lista!H59=0,\"\",lista!H59)","v":""},{"$f":"IF(lista!J59=0,\"\",lista!J59)","v":""}]
[null,null,null,null,null,null,{"$f":"IF(lista!H60=0,\"\",lista!H60)","v":""},{"$f":"IF(lista!J60=0,\"\",lista!J60)","v":""}]
[null,null,null,null,null,null,{"$f":"IF(lista!H61=0,\"\",lista!H61)","v":""},{"$f":"IF(lista!J61=0,\"\",lista!J61)","v":""}]
[null,null,null,null,null,null,{"$f":"IF(lista!H62=0,\"\",lista!H62)","v":""},{"$f":"IF(lista!J62=0,\"\",lista!J62)","v":""}]
[null,null,null,null,null,null,{"$f":"IF(lista!H63=0,\"\",lista!H63)","v":""},{"$f":"IF(lista!J63=0,\"\",lista!J63)","v":""}]
[null,null,null,null,null,null,{"$f":"IF(lista!H64=0,\"\",lista!H64)","v":""},{"$f":"IF(lista!J64=0,\"\",lista!J64)","v":""}]
[null,null,null,null,null,null,{"$f":"IF(lista!H65=0,\"\",lista!H65)","v":""},{"$f":"IF(lista!J65=0,\"\",lista!J65)","v":""}]
[null,null,null,null,null,null,{"$f":"IF(lista!H66=0,\"\",lista!H66)","v":""},{"$f":"IF(lista!J66=0,\"\",lista!J66)","v":""}]
[null,null,null,null,null,null,{"$f":"IF(lista!H67=0,\"\",lista!H67)","v":""},{"$f":"IF(lista!J67=0,\"\",lista!J67)","v":""}]
[null,null,null,null,null,null,{"$f":"IF(lista!H68=0,\"\",lista!H68)","v":""},{"$f":"IF(lista!J68=0,\"\",lista!J68)","v":""}]
[null,null,null,null,null,null,{"$f":"IF(lista!H69=0,\"\",lista!H69)","v":""},{"$f":"IF(lista!J69=0,\"\",lista!J69)","v":""}]
[null,null,null,null,null,null,{"$f":"IF(lista!H70=0,\"\",lista!H70)","v":""},{"$f":"IF(lista!J70=0,\"\",lista!J70)","v":""}]
[null,null,null,null,null,null,{"$f":"IF(lista!H71=0,\"\",lista!H71)","v":""},{"$f":"IF(lista!J71=0,\"\",lista!J71)","v":""}]
[null,null,null,null,null,null,{"$f":"IF(lista!H72=0,\"\",lista!H72)","v":""},{"$f":"IF(lista!J72=0,\"\",lista!J72)","v":""}]
[null,null,null,null,null,null,{"$f":"IF(lista!H73=0,\"\",lista!H73)","v":""},{"$f":"IF(lista!J73=0,\"\",lista!J73)","v":""}]
[null,null,null,null,null,null,{"$f":"IF(lista!H74=0,\"\",lista!H74)","v":""},{"$f":"IF(lista!J74=0,\"\",lista!J74)","v":""}]
[null,null,null,null,null,null,{"$f":"IF(lista!H75=0,\"\",lista!H75)","v":""},{"$f":"IF(lista!J75=0,\"\",lista!J75)","v":""}]
[null,null,null,null,null,null,{"$f":"IF(lista!H76=0,\"\",lista!H76)","v":""},{"$f":"IF(lista!J76=0,\"\",lista!J76)","v":""}]
[null,null,null,null,null,null,{"$f":"IF(lista!H77=0,\"\",lista!H77)","v":""},{"$f":"IF(lista!J77=0,\"\",lista!J77)","v":""}]
[null,null,null,null,null,null,{"$f":"IF(lista!H78=0,\"\",lista!H78)","v":""},{"$f":"IF(lista!J78=0,\"\",lista!J78)","v":""}]
[null,null,null,null,null,null,{"$f":"IF(lista!H79=0,\"\",lista!H79)","v":""},{"$f":"IF(lista!J79=0,\"\",lista!J79)","v":""}]
[null,null,null,null,null,null,{"$f":"IF(lista!H80=0,\"\",lista!H80)","v":""},{"$f":"IF(lista!J80=0,\"\",lista!J80)","v":""}]
[null,null,null,null,null,null,{"$f":"IF(lista!H81=0,\"\",lista!H81)","v":""},{"$f":"IF(lista!J81=0,\"\",lista!J81)","v":""}]
[null,null,null,null,null,null,{"$f":"IF(lista!H82=0,\"\",lista!H82)","v":""},{"$f":"IF(lista!J82=0,\"\",lista!J82)","v":""}]
[null,null,null,null,null,null,{"$f":"IF(lista!H83=0,\"\",lista!H83)","v":""},{"$f":"IF(lista!J83=0,\"\",lista!J83)","v":""}]
[null,null,null,null,null,null,{"$f":"IF(lista!H84=0,\"\",lista!H84)","v":""},{"$f":"IF(lista!J84=0,\"\",lista!J84)","v":""}]
[null,null,null,null,null,null,{"$f":"IF(lista!H85=0,\"\",lista!H85)","v":""},{"$f":"IF(lista!J85=0,\"\",lista!J85)","v":""}]
[null,null,null,null,null,null,{"$f":"IF(lista!H86=0,\"\",lista!H86)","v":""},{"$f":"IF(lista!J86=0,\"\",lista!J86)","v":""}]
[null,null,null,null,null,null,{"$f":"IF(lista!H87=0,\"\",lista!H87)","v":""},{"$f":"IF(lista!J87=0,\"\",lista!J87)","v":""}]
[null,null,null,null,null,null,{"$f":"IF(lista!H88=0,\"\",lista!H88)","v":""},{"$f":"IF(lista!J88=0,\"\",lista!J88)","v":""}]
[null,null,null,null,null,null,{"$f":"IF(lista!H89=0,\"\",lista!H89)","v":""},{"$f":"IF(lista!J89=0,\"\",lista!J89)","v":""}]
[null,null,null,null,null,null,{"$f":"IF(lista!H90=0,\"\",lista!H90)","v":""},{"$f":"IF(lista!J90=0,\"\",lista!J90)","v":""}]
[null,null,null,null,null,null,{"$f":"IF(lista!H91=0,\"\",lista!H91)","v":""},{"$f":"IF(lista!J91=0,\"\",lista!J91)","v":""}]
[null,null,null,null,null,null,{"$f":"IF(lista!H92=0,\"\",lista!H92)","v":""},{"$f":"IF(lista!J92=0,\"\",lista!J92)","v":""}]
[null,null,null,null,null,null,{"$f":"IF(lista!H93=0,\"\",lista!H93)","v":""},{"$f":"IF(lista!J93=0,\"\",lista!J93)","v":""}]
[null,null,null,null,null,null,{"$f":"IF(lista!H94=0,\"\",lista!H94)","v":""},{"$f":"IF(lista!J94=0,\"\",lista!J94)","v":""}]
[null,null,null,null,null,null,{"$f":"IF(lista!H95=0,\"\",lista!H95)","v":""},{"$f":"IF(lista!J95=0,\"\",lista!J95)","v":""}]
[null,null,null,null,null,null,{"$f":"IF(lista!H96=0,\"\",lista!H96)","v":""},{"$f":"IF(lista!J96=0,\"\",lista!J96)","v":""}]
[null,null,null,null,null,null,{"$f":"IF(lista!H97=0,\"\",lista!H97)","v":""},{"$f":"IF(lista!J97=0,\"\",lista!J97)","v":""}]
[null,null,null,null,null,null,{"$f":"IF(lista!H98=0,\"\",lista!H98)","v":""},{"$f":"IF(lista!J98=0,\"\",lista!J98)","v":""}]
[null,null,null,null,null,null,{"$f":"IF(lista!H99=0,\"\",lista!H99)","v":""},{"$f":"IF(lista!J99=0,\"\",lista!J99)","v":""}]
[null,null,null,null,null,null,{"$f":"IF(lista!H100=0,\"\",lista!H100)","v":""},{"$f":"IF(lista!J100=0,\"\",lista!J100)","v":""}]
[null,null,null,null,null,null,{"$f":"IF(lista!H101=0,\"\",lista!H101)","v":""},{"$f":"IF(lista!J101=0,\"\",lista!J101)","v":""}]
[null,null,null,null,null,null,{"$f":"IF(lista!H102=0,\"\",lista!H102)","v":""},{"$f":"IF(lista!J102=0,\"\",lista!J102)","v":""}]
[null,null,null,null,null,null,{"$f":"IF(lista!H103=0,\"\",lista!H103)","v":""},{"$f":"IF(lista!J103=0,\"\",lista!J103)","v":""}]
[null,null,null,null,null,null,{"$f":"IF(lista!H104=0,\"\",lista!H104)","v":""},{"$f":"IF(lista!J104=0,\"\",lista!J104)","v":""}]
[null,null,null,null,null,null,{"$f":"IF(lista!H105=0,\"\",lista!H105)","v":""},{"$f":"IF(lista!J105=0,\"\",lista!J105)","v":""}]
[null,null,null,null,null,null,{"$f":"IF(lista!H106=0,\"\",lista!H106)","v":""},{"$f":"IF(lista!J106=0,\"\",lista!J106)","v":""}]
[null,null,null,null,null,null,{"$f":"IF(lista!H107=0,\"\",lista!H107)","v":""},{"$f":"IF(lista!J107=0,\"\",lista!J107)","v":""}]

{"sheet":"lista","index":1,"n_rows":159,"n_cols":10,"rows_kept":159,"cut":false,"hidden":false,"merged":[]}
["Region","Departamento","Municipio","Poblacion",null,"Continentes",null,"Paises",null,"Ciudades"]
["REGION DEL PACIFICO","LEON","ACHOAPA",0,null,"REGION DEL PACIFICO",null,"LEON",null,"CIUDAD SANDINO"]
["REGION CENTRAL","CHONTALES","ACOYAPA",0,null,"REGION CENTRAL",null,"RIVAS",null,"EL CRUCERO"]
["REGION DEL PACIFICO","RIVAS","ALTAGRACIA",0,null,"REGION DEL CARIBE",null,"CARAZO",null,"MANAGUA"]
["REGION DEL PACIFICO","RIVAS","BELÉN",0,null,null,null,"MASAYA",null,"MASACHAPA"]
["REGION DEL CARIBE","RAAS","BLUEFIELDS",0,null,null,null,"CHINANDEGA",null,"MATEARE"]
["REGION CENTRAL","BOACO","BOACO",0,null,null,null,"MANAGUA",null,"SAN FRANCISCO LIBRE"]
["REGION CENTRAL","MATAGALPA","BOCANA DE PAIWAS",0,null,null,null,"GRANADA",null,"SAN RAFAEL DEL SUR"]
["REGION DEL CARIBE","RAAN","BONANZA",0,null,null,null,null,null,"TICUANTEPE"]
["REGION DEL PACIFICO","RIVAS","BUENOS AIRES",0,null,null,null,null,null,"TIPITAPA"]
["REGION CENTRAL","BOACO","CAMOAPA",0,null,null,null,null,null,"VILLA CARLOS FONSECA"]
["REGION DEL PACIFICO","CARAZO","CARAZO",0]
["REGION DEL PACIFICO","RIVAS","CÁRDENAS",0]
["REGION DEL PACIFICO","MASAYA","CATARINA",0]
["REGION DEL PACIFICO","CHINANDEGA","CHICHIGALPA",0]
["REGION DEL PACIFICO","CHINANDEGA","CHINANDEGA",0]
["REGION CENTRAL","CHONTALES","CHONTALES",0]
["REGION DEL PACIFICO","CHINANDEGA","CINCO PINOS",0]
["REGION CENTRAL","NUEVA SEGOVIA","CIUDAD ANTIGUA",0]
["REGION CENTRAL","MATAGALPA","CIUDAD DARIO",0]
["REGION DEL PACIFICO","MANAGUA","CIUDAD SANDINO",0]
["REGION CENTRAL","CHONTALES","COMALAPA",0]
["REGION CENTRAL","ESTELI","CONDEGA",0]
["REGION DEL PACIFICO","CHINANDEGA","CORINTO",0]
["REGION DEL CARIBE","RAAS","CORN ISLAND",0]
["REGION CENTRAL","CHONTALES","CUAPA",0]
["REGION DEL CARIBE","RAAS","DESEMBOCADURA DEL RÍO GRANDE",0]
["REGION CENTRAL","NUEVA SEGOVIA","DIPILTO",0]
["REGION DEL PACIFICO","GRANADA","DIRIA",0]
["REGION DEL PACIFICO","CARAZO","DIRIAMBA",0]
["REGION DEL PACIFICO","GRANADA","DIRIOMO",0]
["REGION DEL PACIFICO","CARAZO","DOLORES",0]
["REGION CENTRAL","RIO SAN JUAN","EL ALMENDRO",0]
["REGION DEL CARIBE","RAAS","EL AYOTE",0]
["REGION CENTRAL","RIO SAN JUAN","EL CASTILLO",0]
["REGION CENTRAL","CHONTALES","EL CORAL",0]
["REGION DEL PACIFICO","MANAGUA","EL CRUCERO",0]
["REGION CENTRAL","JINOTEGA","EL CUA",0]
["REGION DEL PACIFICO","LEON","EL JICARAL",0]
["REGION CENTRAL","NUEVA SEGOVIA","EL JICARO",0]
["REGION DEL CARIBE","RAAS","EL RAMA",0]
["REGION DEL PACIFICO","CHINANDEGA","EL REALEJO",0]
["REGION DEL PACIFICO","CARAZO","EL ROSARIO",0]
["REGION DEL PACIFICO","LEON","EL SAUCE",0]
["REGION DEL CARIBE","RAAS","EL TORTUGUERO",0]
["REGION DEL PACIFICO","CHINANDEGA","EL VIEJO",0]
["REGION CENTRAL","MATAGALPA","ESQUIPULAS",0]
["REGION CENTRAL","ESTELI","ESTELI",0]
["REGION DEL PACIFICO","GRANADA","GRANADA",0]
["REGION CENTRAL","NUEVA SEGOVIA","JALAPA",0]
["REGION CENTRAL","JINOTEGA","JINOTEGA",0]
["REGION DEL PACIFICO","CARAZO","JINOTEPE",0]
["REGION CENTRAL","CHONTALES","JUIGALPA",0]
["REGION DEL CARIBE","RAAS","KUKRA HILL",0]
["REGION DEL PACIFICO","MASAYA","LA CONCEPCION",0]
["REGION CENTRAL","JINOTEGA","LA CONCORDIA",0]
["REGION DEL PACIFICO","CARAZO","LA CONQUISTA",0]
["REGION DEL CARIBE","RAAS","LA CRUZ DE RÍO GRANDE",0]
["REGION CENTRAL","MATAGALPA","LA DALIA",0]
["REGION CENTRAL","CHONTALES","LA LIBERTAD",0]
["REGION DEL PACIFICO","LEON","LA PAZ CENTRO",0]
["REGION DEL PACIFICO","CARAZO","LA PAZ DE CARAZO",0]
["REGION CENTRAL","ESTELI","LA TRINIDAD",0]
["REGION DEL CARIBE","RAAS","LAGUNA DE PERLAS",0]
["REGION CENTRAL","JINOTEGA","LAS PRADERAS",0]
["REGION CENTRAL","MADRIZ","LAS SABANAS",0]
["REGION DEL PACIFICO","LEON","LEON",0]
["REGION CENTRAL","NUEVA SEGOVIA","MACUELIZO",0]
["REGION CENTRAL","MADRIZ","MADRIZ",0]
["REGION DEL PACIFICO","LEON","MALPAISILLO",0]
["REGION DEL PACIFICO","MANAGUA","MANAGUA",0]
["REGION DEL PACIFICO","MANAGUA","MASACHAPA",0]
["REGION DEL PACIFICO","MASAYA","MASATEPE",0]
["REGION DEL PACIFICO","MASAYA","MASAYA",0]
["REGION CENTRAL","MATAGALPA","MATAGALPA",0]
["REGION DEL PACIFICO","MANAGUA","MATEARE",0]
["REGION CENTRAL","MATAGALPA","MATIGUAS",0]
["REGION CENTRAL","RIO SAN JUAN","MORRITO",0]
["REGION CENTRAL","NUEVA SEGOVIA","MOSONTE",0]
["REGION DEL PACIFICO","RIVAS","MOYOGALPA",0]
["REGION DEL CARIBE","RAAS","MUELLE DE LOS BUEYES",0]
["REGION CENTRAL","NUEVA SEGOVIA","MURRA",0]
["REGION CENTRAL","MATAGALPA","MUY MUY",0]
["REGION DEL PACIFICO","LEON","NAGAROTE",0]
["REGION DEL PACIFICO","GRANADA","NANDAIME",0]
["REGION DEL PACIFICO","MASAYA","NANDASMO",0]
["REGION DEL PACIFICO","MASAYA","NINDIRI",0]
["REGION DEL PACIFICO","MASAYA","NIQUINOHOMO",0]
["REGION DEL CARIBE","RAAS","NUEVA GUINEA",0]
["REGION CENTRAL","NUEVA SEGOVIA","OCOTAL",0]
["REGION DEL CARIBE","RAAS","PAIWAS",0]
["REGION CENTRAL","MADRIZ","PALACAGUINA",0]
["REGION DEL PACIFICO","CHINANDEGA","POSOLTEGA",0]
["REGION DEL PACIFICO","RIVAS","POTOSÍ",0]
["REGION DEL CARIBE","RAAN","PRINZAPOLKA",0]
["REGION CENTRAL","ESTELI","PUEBLO NUEVO",0]
["REGION DEL CARIBE","RAAN","PUERTO CABEZAS",0]
["REGION DEL PACIFICO","LEON","QUEZALGUAQUE",0]
["REGION CENTRAL","NUEVA SEGOVIA","QUILALÍ",0]
["REGION DEL CARIBE","RAAS","RAAS",0]
["REGION CENTRAL","MATAGALPA","RANCHO GRANDE",0]
["REGION CENTRAL","MATAGALPA","RIO BLANCO",0]
["REGION DEL PACIFICO","RIVAS","RIVAS",0]
["REGION DEL CARIBE","RAAN","ROSITA",0]
["REGION CENTRAL","RIO SAN JUAN","SAN CARLOS",0]
["REGION CENTRAL","MATAGALPA","SAN DIONISIO",0]
["REGION CENTRAL","NUEVA SEGOVIA","SAN FERNANDO",0]
["REGION DEL PACIFICO","CHINANDEGA","SAN FRANCISCO DEL NORTE",0]
["REGION DEL PACIFICO","MANAGUA","SAN FRANCISCO LIBRE",0]
["REGION CENTRAL","MATAGALPA","SAN ISIDRO",0]
["REGION DEL PACIFICO","RIVAS","SAN JORGE",0]
["REGION CENTRAL","JINOTEGA","SAN JOSE DE BOCAY",0]
["REGION CENTRAL","MADRIZ","SAN JOSÉ DE CUSMAPA",0]
["REGION CENTRAL","BOACO","SAN JOSE DE LOS REMATES",0]
["REGION CENTRAL","ESTELI","SAN JUAN DE LIMAY",0]
["REGION CENTRAL","RIO SAN JUAN","SAN JUAN DE NICARAGUA",0]
["REGION DEL PACIFICO","MASAYA","SAN JUAN DE ORIENTE",0]
["REGION CENTRAL","MADRIZ","SAN JUAN DE RIO COCO",0]
["REGION DEL PACIFICO","RIVAS","SAN JUAN DEL SUR",0]
["REGION CENTRAL","BOACO","SAN LORENSO",0]
["REGION CENTRAL","MADRIZ","SAN LUCAS",0]
["REGION DEL PACIFICO","CARAZO","SAN MARCOS",0]
["REGION CENTRAL","RIO SAN JUAN","SAN MIGUELITO",0]
["REGION CENTRAL","ESTELI","SAN NICOLÁS",0]
["REGION CENTRAL","CHONTALES","SAN PEDRO DE LÓVAGO",0]
["REGION DEL PACIFICO","CHINANDEGA","SAN PEDRO DEL NORTE",0]
["REGION CENTRAL","JINOTEGA","SAN RAFAEL DEL NORTE",0]
["REGION DEL PACIFICO","MANAGUA","SAN RAFAEL DEL SUR",0]
["REGION CENTRAL","MATAGALPA","SAN RAMÓN",0]
["REGION CENTRAL","JINOTEGA","SAN SEBASTIAN DE YALI",0]
["REGION CENTRAL","BOACO","SANTA LUCIA",0]
["REGION CENTRAL","NUEVA SEGOVIA","SANTA MARÍA",0]
["REGION DEL PACIFICO","LEON","SANTA ROSA DEL PEÑON",0]
["REGION DEL PACIFICO","CARAZO","SANTA TERESA",0]
["REGION CENTRAL","CHONTALES","SANTO DOMINGO",0]
["REGION CENTRAL","CHONTALES","SANTO TOMÁS",0]
["REGION DEL PACIFICO","CHINANDEGA","SANTO TOMAS DEL NORTE",0]
["REGION CENTRAL","MATAGALPA","SÉBACO",0]
["REGION DEL CARIBE","RAAN","SIUNA",0]
["REGION DEL PACIFICO","CHINANDEGA","SOMOTILLO",0]
["REGION CENTRAL","MADRIZ","SOMOTO",0]
["REGION DEL PACIFICO","LEON","TELICA",0]
["REGION CENTRAL","MADRIZ","TELPANECA",0]
["REGION CENTRAL","MATAGALPA","TERRABONA",0]
["REGION CENTRAL","BOACO","TEUSTEPE",0]
["REGION DEL PACIFICO","MANAGUA","TICUANTEPE",0]
["REGION DEL PACIFICO","MANAGUA","TIPITAPA",0]
["REGION DEL PACIFICO","MASAYA","TISMA",0]
["REGION DEL PACIFICO","RIVAS","TOLA",0]
["REGION DEL PACIFICO","CHINANDEGA","TONALÁ",0]
["REGION CENTRAL","MADRIZ","TOTOGALPA",0]
["REGION CENTRAL","MADRIZ","TOTOGALPA",0]
["REGION DEL PACIFICO","MANAGUA","VILLA CARLOS FONSECA",0]
["REGION CENTRAL","CHONTALES","VILLA SANDINO",0]
["REGION DEL PACIFICO","CHINANDEGA","VILLANUEVA",0]
["REGION DEL CARIBE","RAAN","WASLALA",0]
["REGION DEL CARIBE","RAAN","WASPÁN",0]
["REGION CENTRAL","JINOTEGA","WIWILI DE JINOTEGA",0]
["REGION CENTRAL","NUEVA SEGOVIA","WIWILÍ DE NUEVA SEGOVIA",0]

{"sheet":"nombres definidos","index":2,"n_rows":10,"n_cols":2,"rows_kept":10,"cut":false,"hidden":true,"merged":[]}
["Ciudad_Elegida","=reporte!$D$6"]
["Continente_Elegido","=reporte!$D$2"]
["lstCiudad","=DESREF(lista!$J$1,1,0,CONTARA(lista!$J:$J)-1,1)"]
["lstContinentes","=DESREF(lista!$F$1,1,0,CONTARA(lista!$F:$F)-1,1)"]
["lstPais","=DESREF(lista!$H$1,1,0,CONTARA(lista!$H:$H)-1,1)"]
["Pais_elegido","=reporte!$D$4"]
["tblCiudades","=lista!$C$2:INDICE(lista!$C:$C,CONTARA(lista!$C:$C))"]
["tblCiudadPoblacion","=lista!$C$2:INDICE(lista!$D:$D,CONTARA(lista!$B:$B))"]
["tblContinentes","=lista!$A$2:INDICE(lista!$A:$A,CONTARA(lista!$A:$A))"]
["tblPaises","=lista!$B$2:INDICE(lista!$B:$B,CONTARA(lista!$B:$B))"]

{"sheet":"pass","index":3,"n_rows":4,"n_cols":2,"rows_kept":4,"cut":false,"hidden":true,"merged":[]}
[]
[]
[]
[null,"Escriba la Contraseña"]